fUSD/lending_fUSD_20250416
["ID","MTS","AMOUNT","RATE_DAILY","PERIOD"]
[358190658,1744824647595,-500.0,0.00055136,120]
[358190660,1744824647605,-500.0,0.00055136,120]
[358190662,1744824647614,-378.47913437,0.00055136,120]
[358190664,1744824647625,-500.0,0.00055136,120]
[358190665,1744824647636,-500.0,0.00055136,120]
[358190667,1744824647667,-500.0,0.00055136,120]
[358190670,1744824647681,-500.0,0.00055136,120]
[358190671,1744824647691,-500.0,0.00055136,120]
[358190673,1744824647702,-500.0,0.00055136,120]
[358190675,1744824647712,-500.0,0.00055136,120]
[358190677,1744824647722,-500.0,0.00055136,120]
[358190679,1744824647732,-500.0,0.00055136,120]
[358190681,1744824647742,-500.0,0.00055136,120]
[358190683,1744824647753,-500.0,0.00055136,120]
[358190685,1744824647762,-500.0,0.00055136,120]
[358190687,1744824647772,-533.84254641,0.00055136,120]
[358190689,1744824647781,-500.0,0.00055136,120]
[358190691,1744824647791,-566.23616202,0.00055136,120]
[358190692,1744824647800,-500.0,0.00055136,120]
[358190694,1744824647809,-656.01,0.00055136,120]
[358190696,1744824647819,-500.0,0.00055136,120]
[358190697,1744824647828,-500.0,0.00055136,120]
[358190698,1744824647838,-500.0,0.00055136,120]
[358190700,1744824647848,-500.0,0.00055136,120]
[358190702,1744824647857,-500.0,0.00055136,120]
[358190704,1744824647867,-500.0,0.00055136,120]
[358190706,1744824647876,-500.0,0.00055136,120]
[358190708,1744824647885,-2454.23,0.00055136,120]
[358190710,1744824647897,-500.0,0.00055136,120]
[358190712,1744824647907,-505.55710527,0.00055136,120]
[358190713,1744824647916,-500.0,0.00055136,120]
[358190715,1744824647926,-548.75,0.00055136,120]
[358190717,1744824647936,-500.0,0.00055136,120]
[358190719,1744824647945,-290.71645,0.00055136,120]
[358190720,1744824647955,-500.0,0.00055136,120]
[358190721,1744824647965,-500.0,0.00055136,120]
[358190722,1744824647974,-500.0,0.00055136,120]
[358190723,1744824647985,-500.0,0.00055136,120]
[358190724,1744824647994,-500.0,0.00055136,120]
[358190725,1744824648004,-500.0,0.00055136,120]
[358190726,1744824648013,-500.0,0.00055136,120]
[358190727,1744824648023,-506.20188544,0.00055136,30]
[358190728,1744824648033,-500.0,0.00055136,120]
[358190729,1744824648044,-500.0,0.00055136,120]
[358190730,1744824648054,-500.0,0.00055136,120]
[358190731,1744824648063,-500.0,0.00055136,120]
[358190732,1744824648073,-500.0,0.00055136,120]
[358190733,1744824648083,-500.0,0.00055136,120]
[358190734,1744824648094,-500.0,0.00055136,120]
[358190735,1744824648103,-486.52932164,0.00055136,120]
[358190736,1744824648113,-500.0,0.00055136,120]
[358190737,1744824648124,-500.0,0.00055136,120]
[358190738,1744824648134,-500.0,0.00055136,120]
[358190739,1744824648148,-500.0,0.00055136,120]
[358190740,1744824648160,-500.0,0.00055136,120]
[358190741,1744824648170,-500.0,0.00055136,120]
[358190742,1744824648181,-500.0,0.00055136,120]
[358190743,1744824648191,-500.0,0.00055136,120]
[358190744,1744824648203,-500.0,0.00055136,120]
[358190745,1744824648214,-500.0,0.00055136,120]
[358190746,1744824648224,-497.9309317,0.00055136,120]
[358190747,1744824648234,-500.0,0.00055136,120]
[358190748,1744824648244,-500.0,0.00055136,120]
[358190749,1744824648255,-504.53095867,0.00055158,15]
[358190750,1744824648264,-500.0,0.00055162,2]
[358190751,1744824648275,-12144.0035581,0.00055179,3]
[358190752,1744824648285,-18637.1043718,0.00055184,2]
[358190753,1744824648296,-12144.0035581,0.00055184,3]
[358190754,1744824648307,-18637.1043718,0.00055185,2]
[358190755,1744824648317,-73341.83365493,0.00055185,3]
[358190756,1744824649681,-738.05,0.00055185,3]
[358190757,1744824649732,-10928.14125187,0.00055185,3]
[358190758,1744824649743,-500.0,0.00055185,15]
[358190759,1744824649753,-159.94521929,0.00055185,15]
[358190760,1744824649763,-500.0,0.00055185,10]
[358190761,1744824649774,-500.0,0.00055185,2]
[358190762,1744824649784,-160.49799441,0.00055185,3]
[358190763,1744824649797,-11983.50556369,0.00055185,3]
[358190764,1744824649806,-438.8920065,0.00055187,15]
[358190765,1744824649816,-276.17359114,0.00055187,15]
[358190766,1744824649826,-160.995855,0.00055189,15]
[358190767,1744824649836,-155.72155687,0.00055189,15]
[358190768,1744824649845,-500.0,0.00055189,2]
[358190769,1744824649855,-355.82039354,0.00055189,15]
[358190770,1744824649864,-158.22255998,0.00055189,15]
[358190771,1744824649874,-500.0,0.00055189,2]
[358190772,1744824649883,-182.05394546,0.00055189,15]
[358190773,1744824649893,-508.22497297,0.00055189,15]
[358190774,1744824649905,-151.47913916,0.00055189,10]
[358190775,1744824649915,-500.0,0.00055194,120]
[358190776,1744824649924,-500.0,0.00055194,120]
[358190777,1744824649933,-500.0,0.00055194,120]
[358190778,1744824649942,-500.0,0.00055194,120]
[358190779,1744824649951,-287.93323242,0.00055194,120]
[358190780,1744824649961,-500.0,0.00055194,120]
[358190781,1744824649970,-517.4,0.00055194,120]
[358190782,1744824649979,-517.4,0.00055194,120]
[358190783,1744824649988,-500.0,0.00055194,120]
[358190784,1744824649997,-468.65185757,0.00055196,15]
[358190785,1744824650006,-320.30886058,0.00055198,15]
[358190786,1744824650014,-3283.0,0.000552,120]
[358190787,1744824650023,-690.73,0.00055203,120]
[358190788,1744824650032,-270.03,0.00055203,120]
[358190789,1744824650041,-500.0,0.00055203,120]
[358190790,1744824650050,-500.0,0.00055203,120]
[358190791,1744824650059,-500.0,0.00055203,120]
[358190792,1744824650069,-500.0,0.00055203,120]
[358190793,1744824650078,-500.0,0.00055203,120]
[358190794,1744824650088,-500.0,0.00055203,120]
[358190795,1744824650097,-500.0,0.00055203,120]
[358190796,1744824650107,-500.0,0.00055203,120]
[358190797,1744824650116,-500.0,0.00055203,120]
[358190798,1744824650125,-2122.38,0.00055203,120]
[358190799,1744824650135,-500.0,0.00055203,120]
[358190800,1744824650145,-6015.51,0.00055204,120]
[358190801,1744824650156,-1493.13,0.00055204,120]
[358190802,1744824650165,-500.0,0.00055204,120]
[358190803,1744824650175,-172.80851276,0.00055204,120]
[358190804,1744824650185,-588.03,0.00055204,120]
[358190805,1744824650194,-500.0,0.00055204,8]
[358190806,1744824650204,-267.0,0.00055204,120]
[358190807,1744824650214,-546.17,0.00055204,120]
[358190808,1744824650223,-500.0,0.00055204,120]
[358190809,1744824650233,-500.0,0.00055204,120]
[358190810,1744824650243,-500.0,0.00055204,120]
[358190811,1744824650252,-500.0,0.00055204,120]
[358190812,1744824650261,-500.0,0.00055204,120]
[358190813,1744824650271,-500.0,0.00055204,120]
[358190814,1744824650280,-500.0,0.00055204,120]
[358190815,1744824650290,-500.0,0.00055204,120]
[358190816,1744824650299,-500.0,0.00055204,120]
[358190817,1744824650309,-500.0,0.00055204,120]
[358190818,1744824650319,-401.79,0.00055204,30]
[358190819,1744824650328,-500.0,0.00055204,120]
[358190820,1744824650337,-500.0,0.00055204,120]
[358190821,1744824650347,-500.0,0.00055204,120]
[358190822,1744824650356,-500.0,0.00055204,120]
[358190823,1744824650366,-500.0,0.00055204,120]
[358190824,1744824650376,-500.0,0.00055204,120]
[358190825,1744824650386,-500.0,0.00055204,120]
[358190826,1744824650398,-500.0,0.00055204,120]
[358190827,1744824650408,-500.0,0.00055204,120]
[358190828,1744824650418,-500.0,0.00055204,120]
[358190829,1744824650428,-1229.05,0.00055204,120]
[358190830,1744824650437,-500.0,0.00055204,120]
[358190831,1744824650447,-500.0,0.00055204,120]
[358190832,1744824650457,-500.0,0.00055204,120]
[358190833,1744824650467,-500.0,0.00055204,120]
[358190834,1744824650478,-642.62956989,0.00055204,120]
[358190835,1744824650487,-500.0,0.00055204,120]
[358190836,1744824650496,-815.83,0.00055204,120]
[358190837,1744824650506,-500.0,0.00055204,120]
[358190838,1744824650516,-500.0,0.00055204,120]
[358190839,1744824650525,-500.0,0.00055204,120]
[358190840,1744824650535,-96672.45,0.00055204,7]
[358190841,1744824650544,-608.79,0.00055204,120]
[358190842,1744824650554,-500.0,0.00055204,120]
[358190843,1744824650563,-977.69,0.00055204,2]
[358190844,1744824650573,-513.43,0.00055204,120]
[358190845,1744824650583,-1300.01,0.00055204,120]
[358190846,1744824650592,-500.0,0.00055204,120]
[358190847,1744824650602,-500.0,0.00055204,120]
[358190848,1744824650611,-500.0,0.00055204,120]
[358190849,1744824650621,-500.0,0.00055204,120]
[358190850,1744824650634,-500.0,0.00055204,120]
[358190851,1744824650643,-500.0,0.00055204,120]
[358190852,1744824650656,-500.0,0.00055204,120]
[358190853,1744824650668,-500.0,0.00055204,120]
[358190854,1744824650679,-500.0,0.00055204,120]
[358190855,1744824650690,-500.0,0.00055204,120]
[358190856,1744824650700,-500.0,0.00055204,120]
[358190857,1744824650710,-500.0,0.00055204,120]
[358190858,1744824650719,-500.0,0.00055204,120]
[358190859,1744824650730,-500.0,0.00055204,120]
[358190860,1744824650740,-500.0,0.00055204,120]
[358190861,1744824650750,-500.0,0.00055204,120]
[358190862,1744824650759,-500.0,0.00055204,120]
[358190863,1744824650769,-500.0,0.00055204,120]
[358190864,1744824650780,-500.0,0.00055204,120]
[358190865,1744824650789,-500.0,0.00055204,120]
[358190866,1744824650799,-500.0,0.00055204,120]
[358190867,1744824650809,-500.0,0.00055204,120]
[358190868,1744824650818,-500.0,0.00055204,120]
[358190869,1744824650828,-500.0,0.00055204,118]
[358190870,1744824650837,-500.0,0.00055204,120]
[358190871,1744824650847,-2582.15,0.00055204,120]
[358190872,1744824650857,-500.0,0.00055204,120]
[358190873,1744824650866,-908.53,0.00055204,120]
[358190874,1744824650875,-500.0,0.00055204,120]
[358190875,1744824650885,-728.18,0.00055204,120]
[358190876,1744824650898,-669.76,0.00055204,120]
[358190877,1744824650908,-500.0,0.00055204,120]
[358190878,1744824650918,-500.0,0.00055204,120]
[358190879,1744824650928,-500.0,0.00055204,120]
[358190880,1744824650938,-500.0,0.00055204,120]
[358190881,1744824650948,-500.0,0.00055204,120]
[358190882,1744824650957,-500.0,0.00055204,120]
[358190883,1744824650967,-500.0,0.00055204,120]
[358190884,1744824650977,-500.0,0.00055204,120]
[358190885,1744824650987,-500.0,0.00055204,120]
[358190886,1744824650997,-500.0,0.00055204,120]
[358190887,1744824651007,-500.0,0.00055204,120]
[358190888,1744824651017,-500.0,0.00055204,120]
[358190889,1744824651027,-500.0,0.00055204,120]
[358190890,1744824651037,-500.0,0.00055204,120]
[358190891,1744824651047,-500.0,0.00055204,120]
[358190892,1744824651057,-500.0,0.00055204,120]
[358190893,1744824651067,-500.0,0.00055204,120]
[358190894,1744824651077,-500.0,0.00055204,120]
[358190895,1744824651087,-500.0,0.00055204,120]
[358190896,1744824651097,-500.0,0.00055204,120]
[358190897,1744824651108,-500.0,0.00055204,120]
[358190898,1744824651117,-500.0,0.00055204,120]
[358190899,1744824651127,-500.0,0.00055204,120]
[358190900,1744824651136,-1640.06,0.00055204,120]
[358190901,1744824651145,-500.0,0.00055204,120]
[358190902,1744824651161,-500.0,0.00055204,120]
[358190903,1744824651171,-500.0,0.00055204,120]
[358190904,1744824651180,-500.0,0.00055204,120]
[358190905,1744824651191,-747.28,0.00055204,120]
[358190906,1744824651202,-1927.49,0.00055204,120]
[358190907,1744824651211,-500.0,0.00055204,120]
[358190908,1744824651221,-500.0,0.00055204,120]
[358190909,1744824651231,-500.0,0.00055204,120]
[358190910,1744824651241,-500.0,0.00055204,120]
[358190911,1744824651250,-1792.92,0.00055204,120]
[358190912,1744824651260,-500.0,0.00055204,120]
[358190913,1744824651269,-920.16,0.00055204,120]
[358190914,1744824651278,-500.0,0.00055204,120]
[358190915,1744824651288,-500.0,0.00055204,120]
[358190916,1744824651298,-500.0,0.00055204,120]
[358190917,1744824651307,-500.0,0.00055205,120]
[358190918,1744824651317,-500.0,0.00055205,120]
[358190919,1744824651326,-500.0,0.00055205,120]
[358190920,1744824651337,-500.0,0.00055205,120]
[358190921,1744824651347,-725.95,0.00055205,120]
[358190922,1744824651356,-644.71,0.00055205,120]
[358190923,1744824651367,-546.86,0.00055205,120]
[358190924,1744824651377,-500.0,0.00055205,120]
[358190925,1744824651388,-669.46,0.00055205,120]
[358190926,1744824651404,-248.01431448,0.00055205,120]
[358190927,1744824651413,-500.0,0.00055205,120]
[358190928,1744824651423,-500.0,0.00055205,120]
[358190929,1744824651432,-500.0,0.00055205,120]
[358190930,1744824651442,-500.0,0.00055205,120]
[358190931,1744824651452,-544.5093197,0.00055205,120]
[358190932,1744824651462,-512.75,0.00055205,120]
[358190933,1744824651471,-500.0,0.00055205,120]
[358190934,1744824651480,-500.0,0.00055205,120]
[358190935,1744824651490,-500.0,0.00055205,120]
[358190936,1744824651500,-500.0,0.00055205,120]
[358190937,1744824651509,-500.0,0.00055205,120]
[358190938,1744824651518,-500.0,0.00055205,120]
[358190939,1744824651528,-500.0,0.00055205,120]
[358190940,1744824651539,-500.0,0.00055205,120]
[358190941,1744824651549,-500.0,0.00055205,120]
[358190942,1744824651559,-500.0,0.00055205,120]
[358190943,1744824651569,-500.0,0.00055205,120]
[358190944,1744824651579,-558.05,0.00055205,120]
[358190945,1744824651588,-500.0,0.00055205,120]
[358190946,1744824651598,-606.06,0.00055205,120]
[358190947,1744824651607,-500.0,0.00055205,120]
[358190948,1744824651617,-500.0,0.00055205,120]
[358190949,1744824651628,-628.94,0.00055205,120]
[358190950,1744824651640,-545.81,0.00055205,120]
[358190951,1744824651653,-517.4,0.00055262,120]
[358190952,1744824651663,-500.0,0.00055272,120]
[358190953,1744824651673,-500.0,0.00055272,120]
[358190954,1744824651682,-1944.0,0.00055272,25]
[358190955,1744824651693,-500.0,0.00055273,120]
[358190956,1744824651703,-500.0,0.00055273,120]
[358190957,1744824651713,-500.0,0.00055273,120]
[358190958,1744824651722,-500.0,0.00055273,120]
[358190959,1744824651731,-500.0,0.00055273,120]
[358190960,1744824651740,-500.0,0.00055273,120]
[358190961,1744824651749,-595.42306791,0.00055273,120]
[358190962,1744824651759,-500.0,0.00055273,120]
[358190963,1744824651767,-500.0,0.00055273,120]
[358190964,1744824651775,-500.0,0.00055273,120]
[358190965,1744824651784,-500.0,0.00055273,120]
[358190966,1744824651794,-500.0,0.00055273,120]
[358190967,1744824651804,-500.0,0.00055273,120]
[358190968,1744824651813,-500.0,0.00055273,120]
[358190969,1744824651823,-500.0,0.00055273,120]
[358190970,1744824651833,-656.01,0.00055273,120]
[358190971,1744824651842,-500.0,0.00055273,120]
[358190972,1744824651852,-500.0,0.00055273,120]
[358190973,1744824651861,-500.0,0.00055273,120]
[358190974,1744824651871,-500.0,0.00055273,120]
[358190975,1744824651880,-500.0,0.00055273,120]
[358190976,1744824651890,-2454.23,0.00055273,120]
[358190977,1744824651902,-500.0,0.00055273,120]
[358190978,1744824651912,-548.75,0.00055273,120]
[358190979,1744824651921,-500.0,0.00055273,120]
[358190980,1744824651930,-500.0,0.00055273,120]
[358190981,1744824651940,-500.0,0.00055273,120]
[358190982,1744824651949,-500.0,0.00055273,120]
[358190983,1744824651958,-500.0,0.00055273,120]
[358190984,1744824651968,-500.0,0.00055273,120]
[358190985,1744824651977,-500.0,0.00055273,120]
[358190986,1744824651986,-500.0,0.00055273,120]
[358190987,1744824651996,-500.0,0.00055273,120]
[358190988,1744824652005,-500.0,0.00055273,120]
[358190989,1744824652015,-500.0,0.00055273,120]
[358190990,1744824652024,-500.0,0.00055273,120]
[358190991,1744824652034,-500.0,0.00055273,120]
[358190992,1744824652043,-415.7031214,0.00055273,120]
[358190993,1744824652053,-174.86232536,0.00055273,120]
[358190994,1744824652063,-500.0,0.00055273,120]
[358190995,1744824652072,-500.0,0.00055273,120]
[358190996,1744824652082,-500.0,0.00055273,120]
[358190997,1744824652091,-500.0,0.00055273,120]
[358190998,1744824652101,-609.39835721,0.00055273,120]
[358190999,1744824652111,-150.29265008,0.00055273,120]
[358191000,1744824652120,-438.8920065,0.00055306,15]
[358191001,1744824652130,-276.17359114,0.00055306,15]
[358191002,1744824652139,-500.0,0.00055331,120]
[358191003,1744824652151,-500.0,0.00055331,120]
[358191004,1744824652161,-500.0,0.00055331,120]
[358191005,1744824652171,-500.0,0.00055331,120]
[358191006,1744824652181,-690.73,0.0005534,120]
[358191007,1744824652191,-500.0,0.0005534,120]
[358191008,1744824652201,-500.0,0.0005534,120]
[358191009,1744824652211,-500.0,0.0005534,120]
[358191010,1744824652221,-500.0,0.0005534,120]
[358191011,1744824652231,-235.80685524,0.0005534,120]
[358191012,1744824652240,-500.0,0.0005534,120]
[358191013,1744824652249,-500.0,0.0005534,120]
[358191014,1744824652259,-500.0,0.0005534,120]
[358191015,1744824652268,-500.0,0.0005534,120]
[358191016,1744824652277,-2122.38,0.0005534,120]
[358191017,1744824652287,-500.0,0.0005534,120]
[358191018,1744824652296,-517.4,0.0005534,120]
[358191019,1744824652305,-6015.51,0.00055341,120]
[358191020,1744824652315,-1493.13,0.00055341,120]
[358191021,1744824652324,-500.0,0.00055341,120]
[358191022,1744824652333,-588.03,0.00055341,120]
[358191023,1744824652343,-500.0,0.00055341,8]
[358191024,1744824652352,-546.17,0.00055341,120]
[358191025,1744824652361,-500.0,0.00055341,120]
[358191026,1744824652371,-500.0,0.00055341,120]
[358191027,1744824652380,-500.0,0.00055341,120]
[358191028,1744824652390,-500.0,0.00055341,120]
[358191029,1744824652400,-500.0,0.00055341,120]
[358191030,1744824652409,-500.0,0.00055341,120]
[358191031,1744824652418,-500.0,0.00055341,120]
[358191032,1744824652427,-500.0,0.00055341,120]
[358191033,1744824652436,-500.0,0.00055341,120]
[358191034,1744824652446,-500.0,0.00055341,120]
[358191035,1744824652455,-500.0,0.00055341,120]
[358191036,1744824652464,-500.0,0.00055341,120]
[358191037,1744824652474,-500.0,0.00055341,120]
[358191038,1744824652483,-500.0,0.00055341,120]
[358191039,1744824652493,-500.0,0.00055341,120]
[358191040,1744824652503,-500.0,0.00055341,120]
[358191041,1744824652512,-612.52,0.00055341,120]
[358191042,1744824652521,-500.0,0.00055341,120]
[358191043,1744824652531,-500.0,0.00055341,120]
[358191044,1744824652540,-1229.05,0.00055341,120]
[358191045,1744824652549,-500.0,0.00055341,120]
[358191046,1744824652558,-500.0,0.00055341,120]
[358191047,1744824652567,-500.0,0.00055341,120]
[358191048,1744824652576,-500.0,0.00055341,120]
[358191049,1744824652586,-211.43,0.00055341,120]
[358191050,1744824652595,-815.83,0.00055341,120]
[358191051,1744824652604,-500.0,0.00055341,120]
[358191052,1744824652614,-500.0,0.00055341,120]
[358191053,1744824652623,-500.0,0.00055341,120]
[358191054,1744824652633,-96672.45,0.00055341,7]
[358191055,1744824652799,-608.79,0.00055341,120]
[358191056,1744824652810,-500.0,0.00055341,120]
[358191057,1744824652819,-977.69,0.00055341,2]
[358191058,1744824652829,-513.43,0.00055341,120]
[358191059,1744824652839,-1300.01,0.00055341,120]
[358191060,1744824652848,-500.0,0.00055341,120]
[358191061,1744824652858,-500.0,0.00055341,120]
[358191062,1744824652867,-500.0,0.00055341,120]
[358191063,1744824652877,-500.0,0.00055341,120]
[358191064,1744824652886,-364.82809421,0.00055341,120]
[358191065,1744824652895,-500.0,0.00055341,120]
[358191066,1744824652909,-500.0,0.00055341,120]
[358191067,1744824652919,-500.0,0.00055341,120]
[358191068,1744824652929,-500.0,0.00055341,120]
[358191069,1744824652939,-500.0,0.00055341,120]
[358191070,1744824652949,-500.0,0.00055341,120]
[358191071,1744824652959,-500.0,0.00055341,120]
[358191072,1744824652969,-500.0,0.00055341,120]
[358191073,1744824652979,-500.0,0.00055341,120]
[358191074,1744824652988,-500.0,0.00055341,120]
[358191075,1744824652998,-500.0,0.00055341,120]
[358191076,1744824653007,-500.0,0.00055341,120]
[358191077,1744824653017,-500.0,0.00055341,120]
[358191078,1744824653027,-500.0,0.00055341,120]
[358191079,1744824653036,-500.0,0.00055341,120]
[358191080,1744824653045,-500.0,0.00055341,120]
[358191081,1744824653055,-500.0,0.00055341,120]
[358191082,1744824653064,-500.0,0.00055341,118]
[358191083,1744824653073,-500.0,0.00055341,120]
[358191084,1744824653083,-2582.15,0.00055341,120]
[358191085,1744824653092,-500.0,0.00055341,120]
[358191086,1744824653101,-908.53,0.00055341,120]
[358191087,1744824653110,-500.0,0.00055341,120]
[358191088,1744824653120,-728.18,0.00055341,120]
[358191089,1744824653129,-669.76,0.00055341,120]
[358191090,1744824653138,-500.0,0.00055341,120]
[358191091,1744824653148,-500.0,0.00055341,120]
[358191092,1744824653157,-500.0,0.00055341,120]
[358191093,1744824653167,-500.0,0.00055341,120]
[358191094,1744824653176,-500.0,0.00055341,120]
[358191095,1744824653186,-328.91,0.00055341,120]
[358191096,1744824653195,-500.0,0.00055341,120]
[358191097,1744824653206,-500.0,0.00055341,120]
[358191098,1744824653215,-500.0,0.00055341,120]
[358191099,1744824653225,-500.0,0.00055341,120]
[358191100,1744824653234,-500.0,0.00055341,120]
[358191101,1744824653244,-500.0,0.00055341,120]
[358191102,1744824653254,-500.0,0.00055341,120]
[358191103,1744824653264,-500.0,0.00055341,120]
[358191104,1744824653273,-500.0,0.00055341,120]
[358191105,1744824653283,-500.0,0.00055341,120]
[358191106,1744824653293,-580.37241549,0.00055341,120]
[358191107,1744824653302,-500.0,0.00055341,120]
[358191108,1744824653311,-500.0,0.00055341,120]
[358191109,1744824653331,-500.0,0.00055341,120]
[358191110,1744824653342,-500.0,0.00055341,120]
[358191111,1744824653353,-500.0,0.00055341,120]
[358191112,1744824653362,-500.0,0.00055341,120]
[358191113,1744824653372,-1640.06,0.00055341,120]
[358191114,1744824653382,-500.0,0.00055341,120]
[358191115,1744824653393,-500.0,0.00055341,120]
[358191116,1744824653403,-500.0,0.00055341,120]
[358191117,1744824653413,-747.28,0.00055341,120]
[358191118,1744824653423,-1927.49,0.00055341,120]
[358191119,1744824653433,-500.0,0.00055341,120]
[358191120,1744824653443,-500.0,0.00055341,120]
[358191121,1744824653453,-500.0,0.00055341,120]
[358191122,1744824653463,-500.0,0.00055341,120]
[358191123,1744824653473,-500.0,0.00055341,120]
[358191124,1744824653483,-1792.92,0.00055341,120]
[358191125,1744824653493,-1792.92,0.00055341,120]
[358191126,1744824653503,-500.0,0.00055341,120]
[358191127,1744824653512,-500.0,0.00055341,120]
[358191128,1744824653522,-920.16,0.00055341,120]
[358191129,1744824653532,-920.16,0.00055341,120]
[358191130,1744824653541,-404.77495196,0.00055341,120]
[358191131,1744824653552,-500.0,0.00055341,120]
[358191132,1744824653562,-500.0,0.00055341,120]
[358191133,1744824653572,-500.0,0.00055342,120]
[358191134,1744824653581,-500.0,0.00055342,120]
[358191135,1744824653591,-500.0,0.00055342,120]
[358191136,1744824653601,-500.0,0.00055342,120]
[358191137,1744824653611,-725.95,0.00055342,120]
[358191138,1744824653621,-644.71,0.00055342,120]
[358191139,1744824653635,-546.86,0.00055342,120]
[358191140,1744824653645,-500.0,0.00055342,120]
[358191141,1744824653658,-669.46,0.00055342,120]
[358191142,1744824653667,-250.3734324,0.00055342,120]
[358191143,1744824653678,-500.0,0.00055342,120]
[358191144,1744824653688,-500.0,0.00055342,120]
[358191145,1744824653698,-500.0,0.00055342,120]
[358191146,1744824653709,-512.75,0.00055342,120]
[358191147,1744824653719,-500.0,0.00055342,120]
[358191148,1744824653730,-500.0,0.00055342,120]
[358191149,1744824653740,-500.0,0.00055342,120]
[358191150,1744824653751,-500.0,0.00055342,120]
[358191151,1744824653761,-500.0,0.00055342,120]
[358191152,1744824653771,-500.0,0.00055342,120]
[358191153,1744824653781,-500.0,0.00055342,120]
[358191154,1744824653790,-500.0,0.00055342,120]
[358191155,1744824653800,-500.0,0.00055342,120]
[358191156,1744824653810,-500.0,0.00055342,120]
[358191157,1744824653820,-558.05,0.00055342,120]
[358191158,1744824653829,-500.0,0.00055342,120]
[358191159,1744824653839,-500.0,0.00055342,120]
[358191160,1744824653849,-500.0,0.00055342,120]
[358191161,1744824653859,-628.94,0.00055342,120]
[358191162,1744824653868,-545.81,0.00055342,120]
[358191163,1744824653878,-500.0,0.0005541,120]
[358191164,1744824653887,-448.71830175,0.0005541,120]
[358191165,1744824653897,-500.0,0.0005541,120]
[358191166,1744824653908,-500.0,0.0005541,120]
[358191167,1744824653918,-500.0,0.0005541,120]
[358191168,1744824653927,-500.0,0.0005541,120]
[358191169,1744824653937,-500.0,0.0005541,120]
[358191170,1744824653947,-500.0,0.0005541,120]
[358191171,1744824653957,-500.0,0.0005541,120]
[358191172,1744824653966,-500.0,0.0005541,120]
[358191173,1744824653976,-656.01,0.0005541,120]
[358191174,1744824653986,-500.0,0.0005541,120]
[358191175,1744824653995,-500.0,0.0005541,120]
[358191176,1744824654005,-500.0,0.0005541,120]
[358191177,1744824654015,-2454.23,0.0005541,120]
[358191178,1744824654025,-500.0,0.0005541,120]
[358191179,1744824654035,-548.75,0.0005541,120]
[358191180,1744824654044,-500.0,0.0005541,120]
[358191181,1744824654054,-500.0,0.0005541,120]
[358191182,1744824654063,-500.0,0.0005541,120]
[358191183,1744824654073,-500.0,0.0005541,120]
[358191184,1744824654083,-500.0,0.0005541,120]
[358191185,1744824654094,-500.0,0.0005541,120]